bitfinex/quotes_SOLUSD_20251030
["timestamp","ask_amount","ask_price","bid_price","bid_amount"]
[1761826849413,117.23994596,190.8,190.79,0.1]
[1761826850208,121.02816383,190.8,190.79,0.1]
[1761826851515,114.65138312,190.8,190.79,0.1]
[1761826851681,111.23933614,190.8,190.79,0.1]
[1761826853231,57.3089567,190.82,190.79,0.78]
[1761826853434,57.3089567,190.84,190.79,0.78]
[1761826853725,3.79901211,190.83,190.79,8.0889567]
[1761826853937,57.3089567,190.86,190.8,7.3089567]
[1761826854126,50.0,190.86,190.81,7.3089567]
[1761826854441,57.3089567,190.86,190.81,0.68]
[1761826854612,7.3089567,190.83,190.79,0.1]
[1761826854815,57.3089567,190.8,190.79,0.1]
[1761826855029,57.45111827,190.8,190.79,0.1]
[1761826855197,7.3089567,190.83,190.79,0.78]
[1761826855707,9.78882769,190.88,190.79,0.78]
[1761826855708,50.0,190.93,190.82,7.3089567]
[1761826855914,53.80404906,190.92,190.87,7.3089567]
[1761826856213,57.3089567,190.94,190.88,7.9889567]
[1761826856418,3.806858,190.93,190.88,7.9889567]
[1761826856600,0.14216157,190.92,190.89,0.68]
[1761826856818,3.806858,190.93,190.89,0.68]
[1761826857228,50.0,190.94,190.89,0.68]
[1761826857531,50.0,190.94,190.89,7.9889567]
[1761826858027,0.14216157,190.93,190.9,0.68]
[1761826858230,50.0,190.98,190.92,7.3089567]
[1761826858438,7.24128453,190.97,190.93,7.3089567]
[1761826858623,107.3089567,191.02,190.95,7.3089567]
[1761826858807,107.3089567,191.02,190.9,0.68]
[1761826858808,3.81210185,191.01,190.96,7.3089567]
[1761826859009,3.81210185,191.01,190.97,0.68]
[1761826859311,0.14216157,190.99,190.97,0.68]
[1761826859509,107.3089567,191.02,190.97,0.68]
[1761826859724,50.0,191.0,190.97,0.68]
[1761826860017,50.0,190.98,190.95,0.68]
[1761826860322,50.0,190.96,190.92,0.68]
[1761826860502,0.14216157,190.97,190.93,0.68]
[1761826860701,50.0,191.0,190.95,7.3089567]
[1761826860910,50.0,191.0,190.94,7.3089567]
[1761826861108,50.0,191.0,190.95,7.3089567]
[1761826861520,50.0,190.98,190.96,0.68]
[1761826861828,50.0,190.98,190.93,7.3089567]
[1761826861829,50.0,190.98,190.93,0.68]
[1761826862124,0.14216157,190.97,190.94,0.68]
[1761826862327,11.2681938,190.97,190.92,0.68]
[1761826862513,7.3089567,190.94,190.89,7.9889567]
[1761826862712,7.3089567,190.92,190.89,0.68]
[1761826862928,7.3089567,190.92,190.88,0.68]
[1761826863233,7.3089567,190.91,190.88,0.68]
[1761826863398,7.3089567,190.92,190.88,0.68]
[1761826864433,7.3089567,190.9,190.84,7.3089567]
[1761826864732,50.0,190.92,190.86,0.68]
[1761826864733,7.3089567,190.91,190.86,0.68]
[1761826864935,7.3089567,190.9,190.86,0.68]
[1761826866506,7.45111827,190.91,190.86,0.68]
[1761826867912,50.0,190.92,190.86,0.68]
[1761826868122,7.45111827,190.91,190.86,0.68]
[1761826868327,7.45111827,190.91,190.86,7.9889567]
[1761826868531,0.14216157,190.93,190.88,7.3089567]
[1761826868848,50.0,190.97,190.92,7.3089567]
[1761826869045,50.0,190.95,190.9,7.3089567]
[1761826869227,7.3089567,190.92,190.87,0.68]
[1761826869538,57.3089567,191.0,190.91,7.3089567]
[1761826869740,57.3089567,190.98,190.93,7.3089567]
[1761826870051,50.0,190.96,190.92,7.3089567]
[1761826870215,0.14216157,190.97,190.93,0.68]
[1761826870919,57.3089567,190.98,190.93,0.68]
[1761826871244,2.7,190.96,190.93,0.68]
[1761826871624,2.7,190.96,190.93,7.9889567]
[1761826872026,2.7,190.96,190.94,0.68]
[1761826873527,50.0,190.98,190.94,0.68]
[1761826873732,0.2,191.1,190.94,0.68]
[1761826873733,50.0,191.03,190.97,7.3089567]
[1761826873922,57.3089567,191.03,190.98,0.68]
[1761826874128,57.3089567,191.0,190.94,0.68]
[1761826874324,57.3089567,190.98,190.94,0.68]
[1761826874548,57.3089567,190.98,190.79,8.58343649]
[1761826874549,50.0,190.94,190.91,0.66]
[1761826874747,57.3089567,190.94,190.91,0.66]
[1761826874930,7.3089567,190.93,190.91,0.66]
[1761826875226,50.0,190.94,190.91,0.66]
[1761826875418,7.3089567,190.93,190.88,0.66]
[1761826875620,7.3089567,190.92,190.88,0.66]
[1761826875841,57.3089567,190.92,190.88,0.66]
[1761826876046,7.3089567,190.89,190.82,7.9689567]
[1761826876250,7.3089567,190.88,190.83,0.66]
[1761826876453,7.3089567,190.87,190.83,0.66]
[1761826876627,50.0,190.88,190.83,0.66]
[1761826876628,7.3089567,190.86,190.83,0.66]
[1761826876965,50.0,190.88,190.83,0.66]
[1761826877251,7.3089567,190.87,190.81,0.66]
[1761826878119,57.3089567,190.92,190.81,88.0927932]
[1761826878448,0.14216157,190.94,190.86,7.3089567]
[1761826878626,50.0,190.96,190.89,7.3089567]
[1761826878821,0.14216157,190.95,190.89,7.3089567]
[1761826879052,57.3089567,190.96,190.9,0.66]
[1761826879370,0.14216157,190.95,190.9,0.66]
[1761826879549,50.0,190.95,190.91,7.3089567]
[1761826879727,50.0,190.95,190.92,0.66]
[1761826880546,0.14216157,190.96,190.92,0.66]
[1761826881527,70.592,190.99,190.92,7.9689567]
[1761826881723,50.0,190.97,190.92,0.66]
[1761826881930,50.0,190.92,190.82,61.6]
[1761826882234,7.3089567,190.87,190.83,0.66]
[1761826882646,50.0,190.86,190.83,0.66]
[1761826882949,50.0,190.82,190.77,0.67]
[1761826883367,7.45111827,190.81,190.77,0.67]
[1761826883545,57.45111827,190.8,190.74,0.67]
[1761826883737,57.45111827,190.8,190.69,0.1]
[1761826883936,71.40416157,190.8,190.7,7.3089567]
[1761826884140,78.04311827,190.8,190.74,0.67]
[1761826884744,0.14216157,190.8,190.75,7.3089567]
[1761826884944,70.592,190.86,190.79,8.0789567]
[1761826885176,20.592,190.85,190.8,7.3089567]
[1761826885338,0.14216157,190.87,190.81,5.51223765]
[1761826885539,50.0,190.88,190.82,4.84223765]
[1761826885767,50.0,190.9,190.85,4.84223765]
[1761826885969,50.0,190.9,190.86,0.67]
[1761826886162,50.0,190.9,190.85,0.67]
[1761826886547,50.0,190.9,190.85,5.51223765]
[1761826886748,54.84223765,190.94,190.87,4.84223765]
[1761826887054,4.84223765,190.94,190.88,0.67]
[1761826887677,54.84223765,190.94,190.88,0.67]
[1761826887884,50.0,190.92,190.86,0.67]
[1761826888038,50.0,190.92,190.86,5.51223765]
[1761826888239,50.0,190.89,190.85,5.51223765]
[1761826888463,50.14216157,190.91,190.85,5.51223765]
[1761826888776,50.14216157,190.91,190.86,0.67]
[1761826888964,50.14216157,190.91,190.86,5.51223765]
[1761826888965,0.14216157,190.91,190.86,5.51223765]
[1761826889283,100.67,190.96,190.88,4.84223765]
[1761826889448,50.0,190.94,190.9,4.84223765]
[1761826889643,50.0,190.94,190.91,0.67]
[1761826890748,2.7,190.93,190.91,0.67]
[1761826891355,0.14216157,190.96,190.91,0.67]
[1761826891667,0.14216157,190.96,190.9,5.51223765]
[1761826891878,50.0,190.9,190.83,0.67]
[1761826892179,50.0,190.9,190.85,4.84223765]
[1761826892542,50.0,190.9,190.85,0.67]
[1761826893050,50.0,190.9,190.86,0.67]
[1761826893258,0.14216157,190.91,190.86,0.67]
[1761826893468,70.592,190.94,190.86,67.11223765]
[1761826893669,70.592,190.94,190.88,4.84223765]
[1761826893986,50.0,190.96,190.89,0.67]
[1761826894276,0.14216157,190.95,190.89,0.67]
[1761826894578,50.14216157,190.95,190.89,0.67]
[1761826894772,50.0,190.93,190.89,0.67]
[1761826894974,50.14216157,190.95,190.89,0.67]
[1761826896287,0.14216157,190.96,190.89,0.67]
[1761826896466,0.14216157,190.96,190.9,4.84223765]
[1761826896667,20.592,190.96,190.9,4.84223765]
[1761826896869,20.592,190.96,190.92,4.84223765]
[1761826897364,20.592,190.96,190.92,5.51223765]
[1761826897968,50.0,190.95,190.9,4.84223765]
[1761826898208,5.51223765,191.04,190.94,4.84223765]
[1761826898381,8.96046255,191.04,190.96,4.84223765]
[1761826898878,28.88246255,191.04,190.97,0.67]
[1761826899078,50.0,191.05,190.97,0.67]
[1761826899271,0.14216157,191.04,190.97,0.67]
[1761826899686,50.0,191.05,190.97,0.67]
[1761826899864,0.14216157,191.04,190.97,0.67]
[1761826900192,50.0,191.01,190.89,13.62031804]
[1761826900404,50.0,191.01,190.95,4.84223765]
[1761826900694,50.0,190.98,190.94,0.67]
[1761826900863,50.14216157,191.0,190.94,0.67]
[1761826901067,50.0,190.98,190.94,0.67]
[1761826901269,50.14216157,191.0,190.94,0.67]
[1761826902273,50.0,190.98,190.94,0.67]
[1761826904171,50.0,190.98,190.94,62.27]
[1761826904574,50.0,190.98,190.95,0.67]
[1761826904790,2.7,190.97,190.95,0.67]
[1761826904990,2.7,190.97,190.95,62.27]
[1761826905291,2.7,190.97,190.92,67.11223765]
[1761826905502,2.7,190.97,190.93,0.67]
[1761826906705,2.7,190.97,190.94,4.84223765]
[1761826906993,2.7,190.97,190.96,4.84223765]
[1761826907509,2.7,190.97,190.96,5.51223765]
[1761826908294,2.7,190.97,190.96,72.34893643]
[1761826908912,50.0,191.11,190.96,59.06374873]
[1761826909091,0.67,191.15,191.08,4.84223765]
[1761826909451,50.0,191.17,191.09,4.84223765]
[1761826909705,50.0,191.17,191.05,9.78882769]
[1761826909889,0.67,191.14,191.04,15.02333355]
[1761826910086,0.67,191.14,191.09,4.84223765]
[1761826910285,50.0,191.15,191.07,4.84223765]
[1761826910286,50.2,191.12,191.07,4.84223765]
[1761826910496,50.87,191.12,191.07,4.84223765]
[1761826910995,0.2,191.12,191.09,4.84223765]
[1761826912680,0.86,191.1,191.09,4.84223765]
[1761826912977,0.2,191.1,191.08,4.84223765]
[1761826914991,0.2,191.1,191.08,61.6]
[1761826915194,0.66,191.09,191.08,61.6]
[1761826917596,50.66,191.09,191.08,61.6]
[1761826917904,0.66,191.09,191.08,61.6]
[1761826918079,50.66,191.09,191.08,61.6]
[1761826918279,50.66,191.09,190.98,117.19033032]
[1761826918280,0.14216157,191.08,190.98,61.6]
[1761826918585,0.80216157,191.08,191.03,4.84223765]
[1761826919201,0.80216157,191.08,190.96,25.43423765]
[1761826919202,0.14216157,191.06,191.01,4.84223765]
[1761826919591,0.66,191.05,191.01,4.84223765]
[1761826921083,20.592,191.04,191.0,4.84223765]
[1761826921293,21.252,191.04,191.0,4.84223765]
[1761826921582,50.66,191.03,190.96,61.6]
[1761826921801,50.66,191.03,190.96,66.44223765]
[1761826921979,0.66,191.02,190.96,66.44223765]
[1761826922383,50.14216157,191.01,190.93,4.84223765]
[1761826922581,50.0,190.99,190.93,4.84223765]
[1761826923002,0.66,190.98,190.93,4.84223765]
[1761826923898,21.39416157,191.01,190.95,4.84223765]
[1761826924100,0.66,191.01,190.97,4.84223765]
[1761826924301,0.80216157,191.05,190.99,4.84223765]
[1761826924493,0.66,191.05,191.01,4.84223765]
[1761826924696,20.592,191.04,190.99,61.6]
[1761826924894,50.0,191.02,190.96,61.6]
[1761826925104,50.0,191.0,190.96,61.6]
[1761826925301,50.0,191.0,190.91,9.78882769]
[1761826925503,0.66,190.99,190.93,4.84223765]
[1761826926012,0.66,190.99,190.91,61.6]
[1761826926306,0.66,190.99,190.94,4.84223765]
[1761826926816,0.66,190.99,190.92,4.84223765]
[1761826927111,0.66,190.99,190.94,4.84223765]
[1761826927422,20.592,190.99,190.96,4.84223765]
[1761826928086,20.592,190.99,190.91,61.6]
[1761826928087,0.66,190.98,190.94,4.84223765]
[1761826928512,50.66,190.98,190.91,66.44223765]
[1761826928883,20.592,190.99,190.91,66.44223765]
[1761826928884,50.0,190.96,190.91,66.44223765]
[1761826929085,50.0,190.96,190.91,4.84223765]
[1761826929287,50.0,190.94,190.87,61.6]
[1761826929506,0.14216157,190.91,190.87,61.6]
[1761826929715,0.14216157,190.91,190.77,0.1]
[1761826929716,54.84223765,190.9,190.82,4.84223765]
[1761826929926,50.66,190.9,190.82,4.84223765]
[1761826930088,0.66,190.89,190.82,4.84223765]
[1761826931287,0.14216157,190.87,190.82,4.84223765]
[1761826931695,0.14216157,190.85,190.79,0.1]
[1761826931892,0.14216157,190.85,190.79,4.94223765]
[1761826932102,50.66,190.86,190.79,4.94223765]
[1761826932507,0.66,190.85,190.79,0.1]
[1761826932707,0.66,190.85,190.8,4.84223765]
[1761826933098,0.66,190.9,190.84,4.84223765]
[1761826933299,0.66,190.9,190.86,4.84223765]
[1761826933817,0.66,190.9,190.82,9.78882769]
[1761826934021,0.66,190.9,190.86,4.84223765]
[1761826934698,50.0,190.97,190.88,4.84223765]
[1761826934901,0.66,190.96,190.85,14.63106534]
[1761826935098,0.66,190.96,190.92,4.84223765]
[1761826935505,50.66,190.96,190.89,5.2386191]
[1761826935820,0.66,190.96,190.91,4.84223765]
[1761826936117,50.0,190.92,190.86,4.84223765]
[1761826936502,0.66,190.91,190.86,4.84223765]
[1761826938810,50.0,190.9,190.84,4.84223765]
[1761826939014,0.7,190.89,190.82,4.84223765]
[1761826939405,0.7,190.89,190.84,4.84223765]
[1761826939618,71.292,190.92,190.86,4.84223765]
[1761826939820,71.292,190.92,190.87,4.84223765]
[1761826940117,0.7,190.92,190.89,4.84223765]
[1761826940317,0.7,190.95,190.91,4.84223765]
[1761826940622,20.592,190.88,190.84,61.6]
[1761826940803,21.292,190.88,190.83,4.84223765]
[1761826941004,21.292,190.88,190.8,66.84106089]
[1761826941214,21.292,190.88,190.83,4.84223765]
[1761826941519,0.7,190.88,190.83,4.84223765]
[1761826941830,50.0,190.88,190.83,4.84223765]
[1761826942001,50.0,190.9,190.85,4.84223765]
[1761826942322,50.0,190.9,190.81,15.02963613]
[1761826942323,0.7,190.9,190.84,4.84223765]
[1761826942620,0.67,190.89,190.84,4.84223765]
[1761826943231,0.67,190.89,190.83,4.84223765]
[1761826943806,20.73416157,190.91,190.87,4.84223765]
[1761826943807,20.592,190.91,190.87,4.84223765]
[1761826944006,20.592,190.91,190.82,5.24054082]
[1761826944007,0.67,190.92,190.88,4.84223765]
[1761826944419,9.78882769,191.0,190.88,4.84223765]
[1761826944420,0.67,190.97,190.91,4.84223765]
[1761826944923,50.0,190.93,190.86,4.84223765]
[1761826945237,0.67,190.92,190.86,4.84223765]
[1761826945412,21.262,190.92,190.86,4.84223765]
[1761826945619,21.262,190.92,190.87,4.84223765]
[1761826945826,21.262,190.92,190.87,10.08138174]
[1761826946129,20.592,190.94,190.89,4.84223765]
[1761826946329,0.67,190.92,190.89,4.84223765]
[1761826946507,0.67,190.93,190.87,5.23914409]
[1761826946711,0.67,190.93,190.88,4.84223765]
[1761826947313,0.67,190.93,190.89,7.30020675]
[1761826947907,0.67,190.96,190.91,7.30020675]
[1761826948112,7.30020675,190.99,190.92,7.30020675]
[1761826948327,0.67,190.96,190.91,68.90020675]
[1761826948507,0.14216157,190.93,190.91,61.6]
[1761826948903,0.67,190.92,190.91,61.6]
[1761826949232,50.14216157,190.91,190.81,82.192]
[1761826949409,7.97020675,190.9,190.83,7.30020675]
[1761826949607,0.67,190.9,190.83,7.30020675]
[1761826949808,0.67,190.89,190.83,7.30020675]
[1761826950812,50.67,190.89,190.83,7.30020675]
[1761826951029,0.67,190.89,190.83,7.30020675]
[1761826951338,7.30020675,190.9,190.83,7.30020675]
[1761826951339,0.67,190.88,190.83,7.30020675]
[1761826951534,0.67,190.88,190.85,7.30020675]
[1761826951741,7.30020675,190.97,190.88,5.23889354]
[1761826951920,0.67,190.95,190.9,7.30020675]
[1761826952120,0.67,190.97,190.93,7.30020675]
[1761826952530,0.67,190.97,190.92,7.30020675]
[1761826952733,0.67,190.97,190.91,7.30020675]
[1761826952937,20.592,191.0,190.93,7.30020675]
[1761826953114,9.78882769,191.03,190.94,7.30020675]
[1761826953115,0.67,190.98,190.94,7.30020675]
[1761826953312,21.262,190.98,190.93,7.30020675]
[1761826953616,21.262,190.98,190.92,7.30020675]
[1761826953933,0.67,190.98,190.93,7.30020675]
[1761826954119,57.30020675,191.02,190.94,7.30020675]
[1761826954308,0.67,191.01,190.95,7.30020675]
[1761826954507,50.67,191.01,190.94,7.30020675]
[1761826954730,0.67,191.0,190.94,7.30020675]
[1761826955544,7.97020675,191.0,190.93,7.30020675]
[1761826955749,0.67,191.0,190.94,7.30020675]
[1761826955916,0.67,191.0,190.9,18.33420638]
[1761826955917,0.67,190.99,190.91,9.78882769]
[1761826956120,50.0,190.98,190.92,7.30020675]
[1761826956448,50.0,190.92,190.8,67.32096494]
[1761826956736,0.14216157,190.93,190.85,7.30020675]
[1761826957033,0.67,190.92,190.86,7.30020675]
[1761826957417,0.14216157,190.91,190.82,9.78882769]
[1761826957620,0.14216157,190.91,190.85,7.30020675]
[1761826957825,8.11236832,190.91,190.84,7.30020675]
[1761826958224,0.81216157,190.91,190.85,7.30020675]
[1761826958441,0.67,190.9,190.84,7.30020675]
[1761826958612,7.30020675,190.9,190.83,7.30020675]
[1761826958814,50.0,190.94,190.88,7.30020675]
[1761826959235,0.67,190.93,190.87,7.30020675]
[1761826959537,0.67,190.93,190.84,20.592]
[1761826959740,50.0,190.92,190.86,7.30020675]
[1761826959959,0.14216157,190.91,190.85,7.30020675]
[1761826960243,0.81216157,190.91,190.86,7.30020675]
[1761826960430,21.40416157,190.91,190.86,7.30020675]
[1761826961032,0.67,190.9,190.86,7.30020675]
[1761826961218,0.67,190.9,190.82,9.78882769]
[1761826961219,0.67,190.9,190.83,5.2402662]
[1761826961722,0.67,190.9,190.85,7.30020675]
[1761826961943,50.0,190.92,190.89,7.30020675]
[1761826962158,15.76,191.09,190.85,61.6]
[1761826962159,0.67,190.91,190.87,7.30020675]
[1761826962567,7.97020675,190.94,190.87,7.30020675]
[1761826962734,50.67,190.93,190.87,7.30020675]
[1761826962931,0.67,190.93,190.87,7.30020675]
[1761826963456,0.67,190.93,190.88,7.30020675]
[1761826963652,0.67,190.93,190.85,9.78882769]
[1761826963832,0.67,190.93,190.88,7.30020675]
[1761826964527,50.0,191.04,190.92,20.592]
[1761826964731,50.0,191.02,190.96,7.30020675]
[1761826964928,0.14216157,191.01,190.96,7.30020675]
[1761826965129,0.67,191.03,190.98,7.30020675]
[1761826965366,0.67,191.05,190.99,7.30020675]
[1761826965544,20.592,191.04,190.99,7.30020675]
[1761826965929,50.67,191.03,190.93,9.78882769]
[1761826966137,50.67,191.03,190.98,7.30020675]
[1761826966339,0.67,191.03,190.98,7.30020675]
[1761826966556,0.67,191.03,190.94,5.2372473]
[1761826966764,50.67,191.03,190.98,7.30020675]
[1761826967071,20.592,191.03,190.99,7.30020675]
[1761826967646,20.592,191.03,190.92,9.78882769]
[1761826967850,20.592,191.03,190.99,7.30020675]
[1761826968070,0.14216157,191.03,190.99,7.30020675]
[1761826969536,0.81216157,191.03,190.99,7.30020675]
[1761826970543,50.0,191.02,190.96,7.30020675]
[1761826971024,50.67,191.02,190.96,7.30020675]
[1761826972431,50.67,191.02,190.98,7.30020675]
[1761826972763,50.67,191.02,190.92,71.38882769]
[1761826972764,0.81216157,191.01,190.95,7.30020675]
[1761826972933,0.81216157,191.01,190.95,68.90020675]
[1761826974453,0.81216157,191.01,190.95,61.6]
[1761826974637,0.81216157,191.01,190.96,7.30020675]
[1761826975331,0.81216157,191.01,190.95,61.6]
[1761826975336,50.0,191.0,190.95,61.6]
[1761826975548,0.14216157,190.99,190.95,61.6]
[1761826975775,0.67,190.98,190.95,61.6]
[1761826977053,0.67,190.98,190.88,13.09673169]
[1761826977054,50.14216157,190.97,190.85,13.09874867]
[1761826977258,50.14216157,190.97,190.89,7.30020675]
[1761826977259,0.14216157,190.94,190.89,7.30020675]
[1761826977784,0.67,190.96,190.86,5.23918679]
[1761826977785,0.81216157,190.98,190.93,7.30020675]
[1761826978191,21.40416157,190.98,190.93,7.30020675]
[1761826978398,21.40416157,190.98,190.9,7.30020675]
[1761826978695,0.14216157,190.94,190.88,7.30020675]
[1761826978850,0.67,190.93,190.88,7.30020675]
[1761826979479,50.67,190.93,190.88,7.30020675]
[1761826979660,50.67,190.93,190.83,9.78882769]
[1761826979859,0.67,190.92,190.86,7.30020675]
[1761826980688,0.67,190.92,190.86,68.90020675]
[1761826981480,0.67,190.92,190.88,7.30020675]
[1761826981775,20.592,190.95,190.9,7.30020675]
[1761826981978,0.67,190.96,190.9,7.30020675]
[1761826982174,20.592,190.95,190.9,68.90020675]
[1761826982475,20.592,190.95,190.9,61.6]
[1761826982476,50.14216157,190.94,190.9,61.6]
[1761826982655,50.81216157,190.94,190.9,61.6]
[1761826982857,0.67,190.93,190.9,61.6]
[1761826983771,20.592,190.95,190.9,68.90020675]
[1761826984089,21.262,190.95,190.9,68.90020675]
[1761826985159,0.67,190.94,190.9,68.90020675]
[1761826985684,21.262,190.94,190.9,61.6]
[1761826986099,0.67,190.93,190.9,61.6]
[1761826986593,0.14216157,190.96,190.9,68.90020675]
[1761826986797,0.81216157,190.96,190.9,68.90020675]
[1761826989306,57.30020675,190.92,190.84,61.6]
[1761826989485,7.30020675,190.92,190.84,68.90020675]
[1761826989795,0.67,190.91,190.84,68.90020675]
[1761826989965,50.0,190.9,190.84,68.90020675]
[1761826990168,50.0,190.9,190.84,61.6]
[1761826990369,0.67,190.89,190.84,61.6]
[1761826990571,50.0,190.88,190.84,61.6]
[1761826990978,0.67,190.87,190.84,61.6]
[1761826992474,27.89220675,190.85,190.79,0.1]
[1761826992713,0.14216157,190.83,190.79,0.1]
[1761826993077,27.89220675,190.85,190.8,7.30020675]
[1761826993078,20.592,190.84,190.8,7.30020675]
[1761826993479,20.592,190.84,190.79,0.1]
[1761826993480,0.67,190.83,190.79,0.1]
[1761826994478,20.592,190.84,190.79,7.40020675]
[1761826994819,0.14216157,190.86,190.79,7.40020675]
[1761826995113,50.0,190.85,190.79,7.40020675]
[1761826995314,0.14216157,190.84,190.79,7.40020675]
[1761826995490,57.30020675,190.83,190.79,0.1]
[1761826995680,0.71,190.82,190.79,0.1]
[1761826996275,8.01020675,190.82,190.79,0.1]
[1761826996511,0.71,190.82,190.79,0.1]
[1761826996807,0.71,190.81,190.79,0.1]
[1761826997203,0.14216157,190.8,190.79,0.1]
[1761826997388,8.15236832,190.8,190.79,0.1]
[1761826997717,50.85216157,190.8,190.79,0.1]
[1761826997878,0.85216157,190.8,190.79,0.1]
[1761826998503,0.71,190.8,190.79,0.1]
[1761826999899,0.14216157,190.83,190.79,0.1]
[1761827000102,0.71,190.82,190.79,0.1]
[1761827001400,50.71,190.82,190.79,0.1]
[1761827001584,0.71,190.82,190.79,0.1]
[1761827001791,0.71,190.81,190.79,0.1]
[1761827002796,20.592,190.84,190.8,7.30020675]
[1761827002996,0.72,190.84,190.8,7.30020675]
[1761827003196,0.72,190.84,190.79,61.7]
[1761827003398,57.30020675,190.89,190.81,7.30020675]
[1761827003601,0.72,190.88,190.83,7.30020675]
[1761827004110,0.72,190.92,190.87,7.30020675]
[1761827004289,0.72,190.92,190.89,7.30020675]
[1761827004607,50.72,190.92,190.89,7.30020675]
[1761827004788,50.0,190.91,190.84,7.30020675]
[1761827004992,50.14216157,190.89,190.82,7.30020675]
[1761827005199,0.72,190.9,190.83,7.30020675]
[1761827005396,0.72,190.89,190.81,9.78882769]
[1761827005598,0.72,190.89,190.8,9.78882769]
[1761827005904,0.72,190.89,190.83,7.30020675]
[1761827006297,0.72,190.89,190.79,25.93331167]
[1761827006298,0.72,190.89,190.82,5.24053941]
[1761827006487,0.72,190.89,190.83,7.30020675]
[1761827007012,20.592,190.92,190.85,7.30020675]
[1761827007207,0.72,190.91,190.87,7.30020675]
[1761827007385,0.72,190.91,190.87,4.8392262]
[1761827008085,0.72,190.91,190.83,9.78882769]
[1761827008290,0.72,190.91,190.87,4.8392262]
[1761827008510,20.592,190.92,190.87,4.8392262]
[1761827008511,20.592,190.94,190.87,4.8392262]
[1761827008711,50.0,190.97,190.91,4.8392262]
[1761827008899,0.72,190.96,190.91,4.8392262]
[1761827009213,0.72,190.96,190.89,4.8392262]
[1761827009214,50.0,190.95,190.89,4.8392262]
[1761827009522,50.0,190.95,190.89,66.4392262]
[1761827009709,0.86216157,190.94,190.89,61.6]
[1761827011016,50.0,190.93,190.89,61.6]
[1761827011220,54.8392262,190.91,190.89,61.6]
[1761827011593,0.72,190.9,190.89,61.6]
[1761827012926,0.86216157,190.9,190.83,61.6]
[1761827013110,50.0,190.89,190.83,66.4392262]
[1761827013321,50.0,190.87,190.8,4.8392262]
[1761827014502,0.72,190.84,190.79,0.1]
[1761827014717,0.72,190.84,190.8,4.8392262]
[1761827014910,20.592,190.87,190.82,4.8392262]
[1761827015208,0.72,190.86,190.82,4.8392262]
[1761827015413,0.72,190.86,190.79,0.1]
[1761827015414,0.72,190.89,190.79,5.34133364]
[1761827015608,50.72,190.89,190.84,4.8392262]
[1761827015919,0.72,190.89,190.84,4.8392262]
[1761827016120,0.72,190.88,190.84,4.8392262]
[1761827016328,0.72,190.88,190.79,66.94133364]
[1761827016644,20.592,190.82,190.79,0.1]
[1761827016801,25.4312262,190.82,190.79,0.1]
[1761827017119,0.72,190.81,190.79,0.1]
[1761827019100,50.72,190.81,190.79,0.1]
[1761827019501,0.72,190.8,190.79,0.1]
[1761827019921,0.86216157,190.8,190.79,0.1]
[1761827022008,5.70138777,190.8,190.79,0.1]
[1761827022216,9.53662385,190.8,190.79,0.1]
[1761827023831,9.53610787,190.8,190.79,0.1]
[1761827024345,4.69688167,190.8,190.79,0.1]
[1761827024637,9.53610787,190.8,190.79,0.1]
[1761827027336,30.12810787,190.8,190.79,0.1]
[1761827027938,30.12534101,190.8,190.79,0.1]
[1761827028132,25.28611481,190.8,190.79,0.1]
[1761827028436,30.12534101,190.8,190.79,0.1]
[1761827033323,27.40184552,190.8,190.79,0.1]